[Event "1000GM Spring IM-C 2024"]
[Site "New York"]
[Date "2024.03.28"]
[Round "1.1"]
[White "Yang, Qindong"]
[Black "Pang, Qi"]
[Result "1/2-1/2"]
[ECO "E05"]
[WhiteElo "2234"]
[BlackElo "2195"]
[Annotator "RC"]
[PlyCount "54"]
[EventDate "2024.03.26"]
[EventType "tourn"]
[EventCountry "USA"]
[SourceTitle "playchess.com"]
[Source "ChessBase"]
[SourceQuality "1"]
[TimeControl "5400+30"]

1. d4 {[%emt 1:31:00]} d5 {[%emt 0:00:15]} 2. c4 {[%emt 0:00:00]} e6 {[%emt 0:00:04]} 3. g3 {[%emt 0:00:00]} Nf6 {[%emt 0:00:07]} 4. Nf3 {[%emt 0:00:00]} Be7 {[%emt 0:00:05]} 5. Bg2 {[%emt 0:00:00]} O-O {[%emt 0:00:12]} 6. O-O {[%emt 0:00:00]} dxc4 {[%emt 0:00:04]} 7. Ne5 {[%emt 0:00:00]} Nc6 {[%emt 0:04:38]} 8. Nxc6 {[%emt 0:00:00]} bxc6 {[%emt 0:00:03]} 9. e3 {[%emt 0:00:00]} Rb8 {[%emt 0:01:41]} 10. Qc2 {[%emt 0:00:00]} c5 {[%emt 0:01:16]} 11. dxc5 {[%emt 0:00:00]} Bxc5 {[%emt 0:01:41]} 12. Rd1 {[%emt 0:00:00]} Qe7 {[%emt 0:04:09]} 13. Nd2 {[%emt 0:00:00]} Ba6 {[%emt 0:13:05]} 14. Nxc4 {[%emt 0:00:00]} Bxc4 {[%emt 0:00:17]} 15. Qxc4 {[%emt 0:00:00]} Rfd8 {[%emt 0:00:05]} 16. Rf1 {[%emt 0:00:00]} Nd7 {[%emt 0:13:13]} 17. Qc2 {[%emt 0:00:00]} Ne5 {[%emt 0:14:47]} 18. Bd2 {[%emt 0:00:00]} Nd3 {[%emt 0:02:23]} 19. Bc3 {[%emt 0:00:00]} Nb4 {[%emt 0:01:32]} 20. Bxb4 {[%emt 0:00:00]} Bxb4 {[%emt 0:00:27]} 21. a3 {[%emt 0:00:00]} Bc5 {[%emt 0:02:02]} 22. Rfd1 {[%emt 0:00:00]} a5 {[%emt 0:00:44]} 23. Rac1 {[%emt 0:00:12]} Bb6 {[%emt 0:01:18]} 24. Rxd8+ {[%emt 0:00:57]} Rxd8 {[%emt 0:00:09]} 25. Rd1 {[%emt 0:00:12]} h5 {[%emt 0:00:53]} 26. Rxd8+ {[%emt 0:01:57]} Qxd8 {[%emt 0:00:02]} 27. h4 {[%emt 0:00:34]} Qd6 {[%emt 0:02:00]} 1/2-1/2

[Event "1000GM Spring IM-C 2024"]
[Site "New York"]
[Date "2024.03.28"]
[Round "1.2"]
[White "Tanenbaum, Zachary"]
[Black "Tang, Zoey"]
[Result "1-0"]
[ECO "B30"]
[WhiteElo "2260"]
[BlackElo "2253"]
[Annotator "RC"]
[PlyCount "103"]
[EventDate "2024.03.26"]
[EventType "tourn"]
[EventCountry "USA"]
[SourceTitle "playchess.com"]
[Source "ChessBase"]
[SourceQuality "1"]
[TimeControl "5400+30"]

1. e4 {[%emt 0:15:44]} c5 {[%emt 0:00:04]} 2. Nf3 {[%emt 0:00:12]} Nc6 {[%emt 0:00:06]} 3. Nc3 {[%emt 0:00:03]} e5 {[%emt 0:00:12]} 4. Bc4 {[%emt 0:00:09]} d6 {[%emt 0:01:34]} 5. d3 {[%emt 0:00:13]} Be7 {[%emt 0:01:19]} 6. Nd2 {[%emt 0:00:16]} Bg5 {[%emt 0:00:31]} 7. Nf1 {[%emt 0:01:38]} Bxc1 {[%emt 0:00:12]} 8. Rxc1 {[%emt 0:00:10]} Nf6 {[%emt 0:03:42]} 9. Ne3 {[%emt 0:00:19]} O-O {[%emt 0:01:16]} 10. a3 {[%emt 0:09:35]} Nd4 {[%emt 0:02:31]} 11. O-O {[%emt 0:02:33]} Be6 {[%emt 0:04:07]} 12. Ncd5 b5 {[%emt 0:00:30]} 13. Nxf6+ Qxf6 {[%emt 0:00:30]} 14. Bd5 Rac8 {[%emt 0:00:30]} 15. c3 Nc6 {[%emt 0:00:30]} 16. a4 a6 {[%emt 0:00:30]} 17. axb5 axb5 {[%emt 0:00:30]} 18. Qb3 {[%emt 0:30:36]} Ne7 {[%emt 1:20:56]} 19. Bxe6 {[%emt 0:11:58]} fxe6 {[%emt 0:00:00]} 20. Qxb5 {[%emt 0:02:55]} Rb8 {[%emt 0:00:00]} 21. Qa6 {[%emt 0:00:35]} Rxb2 {[%emt 0:00:00]} 22. Ng4 {[%emt 0:08:57]} Qf7 {[%emt 0:00:00]} 23. Qxd6 {[%emt 0:01:06]} Ng6 {[%emt 0:00:00]} 24. h3 {[%emt 0:09:00]} h5 {[%emt 0:00:00]} 25. Nxe5 {[%emt 0:00:41]} Nxe5 {[%emt 0:00:00]} 26. Qxe5 {[%emt 0:00:04]} Rxf2 {[%emt 0:00:00]} 27. Rxf2 {[%emt 0:00:44]} Qxf2+ {[%emt 0:00:00]} 28. Kh2 {[%emt 0:02:34]} Qb2 {[%emt 0:00:00]} 29. Rg1 {[%emt 0:00:18]} Qe2 {[%emt 0:00:00]} 30. Qxe6+ {[%emt 0:03:28]} Kh7 {[%emt 0:00:00]} 31. Qd5 {[%emt 0:00:44]} Rf6 {[%emt 0:02:23]} 32. Qxc5 {[%emt 0:00:59]} h4 {[%emt 0:00:46]} 33. Qd5 {[%emt 0:00:49]} Rg6 {[%emt 0:02:40]} 34. c4 {[%emt 0:00:22]} Rg3 {[%emt 0:00:40]} 35. Qf5+ {[%emt 0:00:21]} Kg8 {[%emt 0:00:36]} 36. Qe6+ {[%emt 0:00:30]} Kh7 {[%emt 0:00:24]} 37. d4 {[%emt 0:00:14]} Rg6 {[%emt 0:00:37]} 38. Qf5 {[%emt 0:00:39]} Qxc4 {[%emt 0:00:13]} 39. d5 {[%emt 0:00:30]} Qd3 {[%emt 0:00:19]} 40. Qf3 {[%emt 0:00:27]} Qd4 {[%emt 0:00:32]} 41. Rd1 {[%emt 0:00:26]} Qe5+ {[%emt 0:00:11]} 42. Kh1 {[%emt 0:00:20]} Rf6 {[%emt 0:00:09]} 43. Qe3 {[%emt 0:00:38]} Rg6 {[%emt 0:00:35]} 44. Rf1 {[%emt 0:01:00]} Rg3 {[%emt 0:01:56]} 45. Qf4 {[%emt 0:00:15]} Qe7 {[%emt 0:00:18]} 46. d6 {[%emt 0:00:12]} Qd8 {[%emt 0:00:14]} 47. e5 {[%emt 0:00:15]} Rg6 {[%emt 0:00:28]} 48. Qe4 {[%emt 0:00:37]} Qd7 {[%emt 0:00:38]} 49. Rf4 {[%emt 0:00:28]} Qe6 {[%emt 0:00:42]} 50. Rxh4+ {[%emt 0:00:09]} Kg8 {[%emt 0:00:04]} 51. Qa8+ {[%emt 0:00:11]} Kf7 {[%emt 0:00:08]} 52. Rf4+ {[%emt 0:00:07]} 1-0

[Event "1000GM Spring IM-C 2024"]
[Site "New York"]
[Date "2024.03.28"]
[Round "1.3"]
[White "Savanovic, Aleksandar"]
[Black "Atwell, Rose"]
[Result "1/2-1/2"]
[ECO "C42"]
[WhiteElo "2361"]
[BlackElo "2285"]
[Annotator "RC"]
[PlyCount "31"]
[EventDate "2024.03.26"]
[EventType "tourn"]
[EventCountry "USA"]
[SourceTitle "playchess.com"]
[Source "ChessBase"]
[SourceQuality "1"]
[TimeControl "5400+30"]

1. e4 {[%emt 0:00:02]} e5 {[%emt 0:00:00]} 2. Nf3 {[%emt 0:00:05]} Nf6 {[%emt 0:00:00]} 3. Nxe5 {[%emt 0:00:10]} d6 {[%emt 0:00:00]} 4. Nf3 {[%emt 0:00:06]} Nxe4 {[%emt 0:00:00]} 5. d4 {[%emt 0:00:06]} d5 {[%emt 0:00:00]} 6. Bd3 {[%emt 0:00:10]} Bd6 {[%emt 0:00:01]} 7. O-O {[%emt 0:00:08]} O-O {[%emt 0:00:04]} 8. c4 {[%emt 0:00:06]} c6 {[%emt 0:00:08]} 9. Nc3 {[%emt 0:00:06]} Nxc3 {[%emt 0:00:23]} 10. bxc3 {[%emt 0:00:06]} dxc4 {[%emt 0:00:03]} 11. Bxc4 {[%emt 0:00:09]} Bf5 {[%emt 0:00:03]} 12. Bg5 {[%emt 0:00:50]} Qa5 {[%emt 0:00:08]} 13. Nh4 {[%emt 0:00:46]} Be6 {[%emt 0:00:12]} 14. Bxe6 {[%emt 0:00:07]} Qxg5 {[%emt 0:00:04]} 15. Nf3 {[%emt 0:00:09]} Qa5 {[%emt 0:00:06]} 16. Bb3 {[%emt 0:00:04]} 1/2-1/2

[Event "1000GM Spring IM-C 2024"]
[Site "New York"]
[Date "2024.03.28"]
[Round "1.4"]
[White "Shundi, Matias"]
[Black "Lekic, Dusan"]
[Result "1/2-1/2"]
[ECO "B22"]
[WhiteElo "2191"]
[BlackElo "2320"]
[Annotator "RC"]
[PlyCount "110"]
[EventDate "2024.03.26"]
[EventType "tourn"]
[EventCountry "USA"]
[SourceTitle "playchess.com"]
[Source "ChessBase"]
[SourceQuality "1"]
[TimeControl "5400+30"]

1. e4 {[%emt 0:02:07]} c5 {[%emt 0:00:29]} 2. c3 {[%emt 0:00:10]} d5 {[%emt 0:00:44]} 3. exd5 {[%emt 0:00:05]} Qxd5 {[%emt 0:00:09]} 4. d4 {[%emt 0:00:04]} Nf6 {[%emt 0:00:36]} 5. Nf3 {[%emt 0:00:22]} Bg4 {[%emt 0:00:22]} 6. dxc5 {[%emt 0:00:45]} Qxd1+ {[%emt 0:01:41]} 7. Kxd1 {[%emt 0:00:07]} Nc6 {[%emt 0:00:32]} 8. Be3 {[%emt 0:05:59]} Nd5 {[%emt 0:14:09]} 9. Bc4 {[%emt 0:06:14]} Nxe3+ {[%emt 0:05:33]} 10. fxe3 {[%emt 0:00:07]} e6 {[%emt 0:04:13]} 11. h3 {[%emt 0:05:15]} Bxf3+ {[%emt 0:26:01]} 12. gxf3 {[%emt 0:00:30]} Bxc5 {[%emt 0:00:30]} 13. Ke2 {[%emt 0:00:30]} Ne5 {[%emt 0:00:30]} 14. Bb5+ {[%emt 0:00:30]} Ke7 {[%emt 0:00:30]} 15. f4 {[%emt 0:00:30]} a6 {[%emt 0:00:30]} 16. Bxa6 {[%emt 0:00:30]} Rxa6 {[%emt 0:00:30]} 17. fxe5 {[%emt 0:00:30]} Bb6 {[%emt 0:00:30]} 18. Nd2 {[%emt 0:00:30]} Bc7 19. Nf3 {[%emt 0:00:30]} Rha8 {[%emt 0:00:59]} 20. a3 {[%emt 0:26:30]} Rb6 {[%emt 0:00:22]} 21. Ra2 {[%emt 0:09:14]} g5 {[%emt 0:10:55]} 22. Nxg5 {[%emt 0:07:00]} Rg8 {[%emt 0:00:22]} 23. Rg1 {[%emt 0:00:52]} Bxe5 {[%emt 0:00:09]} 24. Nf3 {[%emt 0:00:44]} Rxg1 {[%emt 0:00:10]} 25. Nxg1 {[%emt 0:00:04]} Bg7 {[%emt 0:08:13]} 26. Nf3 {[%emt 0:01:38]} e5 {[%emt 0:00:20]} 27. Nh4 {[%emt 0:04:57]} e4 {[%emt 0:02:33]} 28. Nf5+ {[%emt 0:05:20]} Kf6 {[%emt 0:00:19]} 29. Nxg7 {[%emt 0:08:50]} Kxg7 {[%emt 0:00:06]} 30. b4 {[%emt 0:00:25]} Rh6 {[%emt 0:00:59]} 31. Rd2 {[%emt 0:00:36]} Rxh3 {[%emt 0:23:04]} 32. Rd7 {[%emt 0:04:00]} Rh2+ {[%emt 0:00:00]} 33. Kf1 {[%emt 0:02:56]} Rc2 {[%emt 0:00:00]} 34. Rxb7 {[%emt 0:00:58]} Rxc3 {[%emt 0:00:00]} 35. a4 {[%emt 0:01:30]} Rxe3 {[%emt 0:00:00]} 36. a5 {[%emt 0:00:10]} Ra3 {[%emt 0:00:00]} 37. Re7 {[%emt 0:01:26]} Ra4 {[%emt 0:00:00]} 38. Rxe4 {[%emt 0:00:14]} h5 {[%emt 0:00:00]} 39. Ke2 {[%emt 0:00:47]} f5 {[%emt 0:00:00]} 40. Re7+ {[%emt 0:01:17]} Kf6 {[%emt 0:00:00]} 41. Rb7 {[%emt 0:00:06]} Ke5 {[%emt 0:00:00]} 42. Rb6 {[%emt 0:00:29]} Kd4 {[%emt 0:00:00]} 43. a6 {[%emt 0:00:22]} h4 {[%emt 0:00:00]} 44. b5 {[%emt 0:01:29]} h3 {[%emt 0:00:00]} 45. Kf2 {[%emt 0:03:05]} Ra2+ {[%emt 0:00:00]} 46. Kg1 {[%emt 0:00:22]} f4 {[%emt 0:00:00]} 47. Rb7 {[%emt 0:01:05]} f3 {[%emt 0:00:00]} 48. a7 {[%emt 0:00:44]} h2+ {[%emt 0:00:00]} 49. Kh1 {[%emt 0:00:07]} f2 {[%emt 0:00:00]} 50. Rf7 {[%emt 0:00:28]} Kc5 {[%emt 0:09:30]} 51. Rf5+ {[%emt 0:01:23]} Kb6 {[%emt 0:00:00]} 52. Rxf2 {[%emt 0:00:47]} Rxa7 {[%emt 0:00:00]} 53. Rb2 {[%emt 0:00:22]} Ra5 {[%emt 0:00:00]} 54. Kxh2 {[%emt 0:00:05]} Rxb5 {[%emt 0:00:00]} 55. Rxb5+ {[%emt 0:00:06]} Kxb5 {[%emt 0:00:00]} 1/2-1/2

[Event "1000GM Spring IM-C 2024"]
[Site "New York"]
[Date "2024.03.28"]
[Round "1.5"]
[White "Yudasin, Leonid"]
[Black "Andrews, Todd"]
[Result "1/2-1/2"]
[ECO "C00"]
[WhiteElo "2337"]
[BlackElo "2160"]
[Annotator "RC"]
[PlyCount "62"]
[EventDate "2024.03.26"]
[EventType "tourn"]
[EventCountry "USA"]
[SourceTitle "playchess.com"]
[Source "ChessBase"]
[SourceQuality "1"]
[TimeControl "5400+30"]

1. e4 {[%emt 0:00:05]} e6 {[%emt 0:00:10]} 2. d3 {[%emt 0:00:35]} d5 {[%emt 0:00:09]} 3. Qe2 {[%emt 0:00:26]} Nf6 {[%emt 0:00:32]} 4. Nf3 {[%emt 0:00:20]} c5 {[%emt 0:01:26]} 5. g3 {[%emt 0:00:28]} Nc6 {[%emt 0:00:12]} 6. Bg2 {[%emt 0:00:12]} Be7 {[%emt 0:00:14]} 7. O-O {[%emt 0:00:16]} O-O {[%emt 0:00:20]} 8. Re1 {[%emt 0:01:46]} b5 {[%emt 0:06:29]} 9. exd5 {[%emt 0:04:54]} exd5 {[%emt 0:05:32]} 10. d4 {[%emt 0:03:15]} c4 {[%emt 0:02:19]} 11. Bf4 {[%emt 0:05:57]} Bg4 {[%emt 0:08:06]} 12. c3 {[%emt 0:03:23]} Re8 {[%emt 0:01:39]} 13. Qc2 {[%emt 0:03:45]} Nh5 {[%emt 0:27:17]} 14. Be3 {[%emt 0:00:30]} Bd6 {[%emt 0:00:30]} 15. Nbd2 {[%emt 0:00:30]} Qd7 {[%emt 0:00:30]} 16. Nf1 {[%emt 0:00:30]} Bf5 {[%emt 0:00:30]} 17. Qd1 {[%emt 1:12:08]} Nf6 18. Bg5 {[%emt 0:00:00]} Ne4 {[%emt 0:04:07]} 19. Qc1 {[%emt 0:00:00]} b4 {[%emt 0:05:59]} 20. Ne3 {[%emt 0:00:00]} bxc3 {[%emt 0:05:39]} 21. bxc3 {[%emt 0:00:00]} h6 {[%emt 0:06:24]} 22. Nxf5 {[%emt 0:00:00]} Qxf5 {[%emt 0:00:02]} 23. Be3 {[%emt 0:00:00]} Rab8 {[%emt 0:01:57]} 24. Nd2 {[%emt 0:00:00]} Nxd2 {[%emt 0:02:42]} 25. Qxd2 {[%emt 0:00:00]} Red8 {[%emt 0:12:16]} 26. Qd1 {[%emt 0:00:00]} a5 {[%emt 0:01:54]} 27. Qf3 {[%emt 0:00:00]} Qxf3 {[%emt 0:00:07]} 28. Bxf3 {[%emt 0:00:00]} Ne7 {[%emt 0:00:11]} 29. Rab1 {[%emt 0:00:00]} Kf8 {[%emt 0:00:25]} 30. Kf1 {[%emt 0:00:00]} a4 {[%emt 0:00:09]} 31. Ke2 {[%emt 0:00:00]} Ke8 {[%emt 0:03:25]} 1/2-1/2

[Event "1000GM Spring IM-C 2024"]
[Site "New York"]
[Date "2024.03.28"]
[Round "2.1"]
[White "Pang, Qi"]
[Black "Andrews, Todd"]
[Result "1-0"]
[ECO "A26"]
[WhiteElo "2195"]
[BlackElo "2160"]
[Annotator "RC"]
[PlyCount "81"]
[EventDate "2024.03.26"]
[EventType "tourn"]
[EventCountry "USA"]
[SourceTitle "playchess.com"]
[Source "ChessBase"]
[SourceQuality "1"]
[TimeControl "5400+30"]

1. Nf3 {[%emt 0:11:21]} d6 {[%emt 0:00:47]} 2. g3 {[%emt 0:01:21]} e5 {[%emt 0:00:20]} 3. d3 {[%emt 0:00:13]} g6 {[%emt 0:00:22]} 4. Bg2 {[%emt 0:00:10]} Bg7 {[%emt 0:00:08]} 5. O-O {[%emt 0:01:25]} Ne7 {[%emt 0:00:34]} 6. c4 {[%emt 0:02:12]} Nbc6 {[%emt 0:02:43]} 7. Nc3 {[%emt 0:00:23]} O-O {[%emt 0:01:41]} 8. Bd2 {[%emt 0:02:19]} h6 {[%emt 0:02:02]} 9. Rb1 {[%emt 0:01:30]} a5 {[%emt 0:02:47]} 10. a3 {[%emt 0:00:17]} Be6 {[%emt 0:00:18]} 11. b4 {[%emt 0:01:28]} axb4 {[%emt 0:00:13]} 12. axb4 {[%emt 0:00:01]} Qd7 {[%emt 0:00:16]} 13. Re1 {[%emt 0:15:07]} f5 {[%emt 0:04:44]} 14. Qc2 {[%emt 0:14:57]} g5 {[%emt 0:07:52]} 15. b5 {[%emt 0:00:32]} Nd8 {[%emt 0:00:24]} 16. Rec1 {[%emt 0:03:40]} Ng6 {[%emt 0:03:57]} 17. Nd5 {[%emt 0:01:57]} g4 {[%emt 0:06:36]} 18. Ne1 {[%emt 0:00:10]} f4 {[%emt 0:02:02]} 19. b6 {[%emt 0:05:58]} c6 {[%emt 0:01:35]} 20. Nc7 {[%emt 0:00:05]} Rc8 {[%emt 0:01:40]} 21. e3 {[%emt 0:04:14]} Qf7 {[%emt 0:04:10]} 22. Bc3 {[%emt 0:02:35]} f3 {[%emt 0:05:26]} 23. Bf1 {[%emt 0:00:04]} h5 {[%emt 0:00:33]} 24. d4 {[%emt 0:03:33]} e4 {[%emt 0:13:14]} 25. Bb4 {[%emt 0:00:17]} Rxc7 {[%emt 0:08:47]} 26. bxc7 {[%emt 0:00:07]} Qxc7 {[%emt 0:00:04]} 27. d5 {[%emt 0:02:57]} Bf5 {[%emt 0:01:23]} 28. c5 {[%emt 0:00:55]} cxd5 {[%emt 0:06:42]} 29. Qd2 {[%emt 0:01:35]} Qf7 {[%emt 0:01:47]} 30. cxd6 {[%emt 0:00:12]} Nc6 {[%emt 0:01:26]} 31. Bc5 {[%emt 0:01:00]} Ra8 {[%emt 0:08:30]} 32. Nc2 {[%emt 0:00:37]} Ra2 {[%emt 0:01:30]} 33. Rxb7 {[%emt 0:03:25]} Bc3 {[%emt 0:08:56]} 34. Qd1 {[%emt 0:01:58]} Qe6 {[%emt 0:00:17]} 35. Bd4 {[%emt 0:02:45]} Ba5 {[%emt 0:01:21]} 36. Ra1 {[%emt 0:04:46]} Rxa1 {[%emt 0:00:24]} 37. Qxa1 {[%emt 0:00:26]} Qxd6 {[%emt 0:00:45]} 38. Bb5 {[%emt 0:00:49]} Bc7 {[%emt 0:02:26]} 39. Bb6 {[%emt 0:01:27]} d4 {[%emt 0:00:44]} 40. Rxc7 {[%emt 0:00:20]} Nce7 {[%emt 0:00:27]} 41. Qxd4 {[%emt 0:00:17]} 1-0

[Event "1000GM Spring IM-C 2024"]
[Site "New York"]
[Date "2024.03.28"]
[Round "2.2"]
[White "Lekic, Dusan"]
[Black "Yudasin, Leonid"]
[Result "1/2-1/2"]
[ECO "D14"]
[WhiteElo "2320"]
[BlackElo "2337"]
[Annotator "RC"]
[PlyCount "30"]
[EventDate "2024.03.26"]
[EventType "tourn"]
[EventCountry "USA"]
[SourceTitle "playchess.com"]
[Source "ChessBase"]
[SourceQuality "1"]
[TimeControl "5400+30"]

1. d4 {[%emt 0:00:17]} d5 {[%emt 0:00:07]} 2. c4 {[%emt 0:00:07]} c6 {[%emt 0:00:04]} 3. cxd5 {[%emt 0:00:09]} cxd5 {[%emt 0:00:05]} 4. Nf3 {[%emt 0:00:03]} Nc6 {[%emt 0:00:08]} 5. Nc3 {[%emt 0:00:06]} Nf6 {[%emt 0:00:06]} 6. Bf4 {[%emt 0:00:07]} Bf5 {[%emt 0:00:14]} 7. e3 {[%emt 0:00:09]} e6 {[%emt 0:00:03]} 8. Bd3 {[%emt 0:00:12]} Bxd3 {[%emt 0:00:07]} 9. Qxd3 {[%emt 0:00:05]} Bd6 {[%emt 0:00:05]} 10. Bxd6 {[%emt 0:00:06]} Qxd6 {[%emt 0:00:07]} 11. O-O {[%emt 0:00:05]} O-O {[%emt 0:00:05]} 12. Rfc1 {[%emt 0:00:08]} Rfc8 {[%emt 0:00:11]} 13. a3 {[%emt 0:00:12]} Na5 {[%emt 0:00:52]} 14. Ne2 {[%emt 0:00:21]} Nc4 {[%emt 0:01:01]} 15. Rc2 {[%emt 0:00:07]} Nb6 {[%emt 0:00:13]} 1/2-1/2

[Event "1000GM Spring IM-C 2024"]
[Site "New York"]
[Date "2024.03.28"]
[Round "2.3"]
[White "Atwell, Rose"]
[Black "Shundi, Matias"]
[Result "1/2-1/2"]
[ECO "B51"]
[WhiteElo "2285"]
[BlackElo "2191"]
[Annotator "RC"]
[PlyCount "46"]
[EventDate "2024.03.26"]
[EventType "tourn"]
[EventCountry "USA"]
[SourceTitle "playchess.com"]
[Source "ChessBase"]
[SourceQuality "1"]
[TimeControl "5400+30"]

1. e4 {[%emt 0:00:01]} c5 {[%emt 0:00:55]} 2. Nf3 {[%emt 0:00:06]} d6 {[%emt 0:00:06]} 3. Bb5+ {[%emt 0:00:03]} Nd7 {[%emt 0:00:19]} 4. c3 {[%emt 0:00:10]} Ngf6 {[%emt 0:00:08]} 5. Qe2 {[%emt 0:00:08]} a6 {[%emt 0:00:21]} 6. Ba4 {[%emt 0:00:27]} b5 {[%emt 0:00:04]} 7. Bc2 {[%emt 0:00:04]} Bb7 {[%emt 0:00:52]} 8. d4 {[%emt 0:00:55]} g6 {[%emt 0:00:41]} 9. e5 {[%emt 0:07:49]} Bxf3 {[%emt 0:02:35]} 10. gxf3 {[%emt 0:00:54]} Nh5 {[%emt 0:00:48]} 11. exd6 {[%emt 0:05:09]} cxd4 {[%emt 0:00:25]} 12. cxd4 {[%emt 0:04:20]} e6 {[%emt 0:02:41]} 13. a4 {[%emt 0:10:04]} Bxd6 {[%emt 0:17:28]} 14. axb5 {[%emt 0:07:00]} axb5 {[%emt 0:00:19]} 15. Rxa8 {[%emt 0:00:39]} Qxa8 {[%emt 0:00:07]} 16. Nc3 {[%emt 0:01:18]} b4 {[%emt 0:06:43]} 17. Nb5 {[%emt 0:02:51]} Qb8 {[%emt 0:06:57]} 18. d5 {[%emt 0:05:22]} e5 {[%emt 0:14:29]} 19. Bh6 {[%emt 0:02:39]} Bf8 {[%emt 0:02:49]} 20. Be3 {[%emt 0:01:52]} Bc5 {[%emt 0:05:32]} 21. Bh6 {[%emt 0:15:13]} Bf8 {[%emt 0:00:51]} 22. Be3 {[%emt 0:02:43]} Bc5 {[%emt 0:00:43]} 23. Bh6 {[%emt 0:03:05]} Bf8 {[%emt 0:05:50]} 1/2-1/2

[Event "1000GM Spring IM-C 2024"]
[Site "New York"]
[Date "2024.03.28"]
[Round "2.4"]
[White "Tang, Zoey"]
[Black "Savanovic, Aleksandar"]
[Result "0-1"]
[ECO "D37"]
[WhiteElo "2253"]
[BlackElo "2361"]
[Annotator "RC"]
[PlyCount "84"]
[EventDate "2024.03.26"]
[EventType "tourn"]
[EventCountry "USA"]
[SourceTitle "playchess.com"]
[Source "ChessBase"]
[SourceQuality "1"]
[TimeControl "5400+30"]

1. d4 {[%emt 0:00:03]} Nf6 {[%emt 0:00:07]} 2. c4 {[%emt 0:00:03]} e6 {[%emt 0:00:06]} 3. Nf3 {[%emt 0:00:03]} d5 {[%emt 0:00:42]} 4. Nc3 {[%emt 0:00:08]} Be7 {[%emt 0:00:04]} 5. Bf4 {[%emt 0:00:37]} O-O {[%emt 0:00:10]} 6. e3 {[%emt 0:00:02]} c5 {[%emt 0:00:17]} 7. dxc5 {[%emt 0:02:15]} Bxc5 {[%emt 0:00:08]} 8. a3 {[%emt 0:00:03]} Nc6 {[%emt 0:00:06]} 9. Qc2 {[%emt 0:00:33]} Qa5 {[%emt 0:00:34]} 10. Rd1 {[%emt 0:10:08]} Be7 {[%emt 0:00:07]} 11. h3 {[%emt 0:12:50]} a6 {[%emt 0:14:12]} 12. Nd2 {[%emt 0:04:39]} e5 {[%emt 0:01:10]} 13. Bg5 {[%emt 0:04:42]} d4 {[%emt 0:01:55]} 14. Nb3 {[%emt 0:00:11]} Qd8 {[%emt 0:06:16]} 15. Bxf6 {[%emt 0:05:45]} Bxf6 {[%emt 0:00:05]} 16. Bd3 {[%emt 0:00:06]} g6 {[%emt 0:01:21]} 17. exd4 {[%emt 0:01:58]} Nxd4 {[%emt 0:00:44]} 18. Nxd4 {[%emt 0:00:13]} exd4 {[%emt 0:00:06]} 19. Ne2 {[%emt 0:01:28]} Be6 {[%emt 0:02:01]} 20. O-O {[%emt 0:01:50]} Rc8 {[%emt 0:00:14]} 21. f4 {[%emt 0:11:11]} b5 {[%emt 0:03:27]} 22. c5 {[%emt 0:01:45]} Bd5 {[%emt 0:00:55]} 23. b4 {[%emt 0:02:42]} Re8 {[%emt 0:03:38]} 24. f5 {[%emt 0:05:18]} g5 {[%emt 0:00:06]} 25. Ng3 {[%emt 0:02:13]} Re3 {[%emt 0:01:29]} 26. Ne4 {[%emt 0:03:04]} Bxe4 {[%emt 0:03:15]} 27. Bxe4 {[%emt 0:00:05]} Rxa3 {[%emt 0:00:28]} 28. Rd3 {[%emt 0:02:59]} Ra4 {[%emt 0:07:35]} 29. Rb3 {[%emt 0:04:52]} a5 {[%emt 0:00:20]} 30. Rfb1 {[%emt 0:06:14]} Rxb4 {[%emt 0:16:49]} 31. Rxb4 {[%emt 0:00:16]} axb4 {[%emt 0:00:06]} 32. Rxb4 {[%emt 0:01:58]} Qa5 {[%emt 0:09:49]} 33. Rb1 {[%emt 0:00:55]} d3 {[%emt 0:01:07]} 34. Bxd3 {[%emt 0:04:09]} b4 {[%emt 0:00:59]} 35. Qc4 {[%emt 0:04:39]} Rxc5 {[%emt 0:00:08]} 36. Qe4 {[%emt 0:02:43]} b3 {[%emt 0:04:05]} 37. Rxb3 {[%emt 0:05:39]} Rc1+ {[%emt 0:00:10]} 38. Bf1 {[%emt 0:00:35]} Qc5+ {[%emt 0:00:16]} 39. Kh2 {[%emt 0:00:34]} Rxf1 {[%emt 0:00:32]} 40. Re3 {[%emt 0:00:17]} Qd6+ {[%emt 0:01:16]} 41. g3 {[%emt 0:00:11]} Qd2+ {[%emt 0:00:08]} 42. Re2 {[%emt 0:00:06]} Rf2+ {[%emt 0:00:08]} 0-1

[Event "1000GM Spring IM-C 2024"]
[Site "New York"]
[Date "2024.03.28"]
[Round "2.5"]
[White "Yang, Qindong"]
[Black "Tanenbaum, Zachary"]
[Result "1-0"]
[ECO "A29"]
[WhiteElo "2234"]
[BlackElo "2260"]
[Annotator "RC"]
[PlyCount "81"]
[EventDate "2024.03.26"]
[EventType "tourn"]
[EventCountry "USA"]
[SourceTitle "playchess.com"]
[Source "ChessBase"]
[SourceQuality "1"]
[TimeControl "5400+30"]

1. c4 {[%emt 0:00:30]} e5 {[%emt 0:29:09]} 2. g3 {[%emt 0:00:00]} Nf6 {[%emt 0:00:24]} 3. Bg2 {[%emt 0:00:00]} Bc5 {[%emt 0:00:09]} 4. Nc3 {[%emt 0:00:07]} O-O {[%emt 0:00:30]} 5. Nf3 {[%emt 0:00:42]} d6 {[%emt 0:00:16]} 6. O-O {[%emt 0:00:27]} Nc6 {[%emt 0:07:14]} 7. e3 {[%emt 0:02:46]} a6 {[%emt 0:02:50]} 8. d4 {[%emt 0:01:01]} Ba7 {[%emt 0:01:09]} 9. h3 {[%emt 0:00:35]} h6 {[%emt 0:00:17]} 10. a3 {[%emt 0:04:28]} exd4 {[%emt 0:06:47]} 11. exd4 {[%emt 0:01:40]} Ne7 {[%emt 0:00:39]} 12. b3 {[%emt 0:17:12]} c6 {[%emt 0:00:53]} 13. Ra2 {[%emt 0:03:31]} Be6 {[%emt 0:03:20]} 14. Rd2 {[%emt 0:22:56]} Ng6 {[%emt 0:01:20]} 15. Bb2 {[%emt 0:03:44]} Re8 {[%emt 0:01:07]} 16. Kh2 {[%emt 0:02:12]} Rc8 {[%emt 0:04:19]} 17. d5 {[%emt 0:06:59]} cxd5 {[%emt 0:00:13]} 18. Nxd5 {[%emt 0:00:21]} Bxd5 {[%emt 0:15:38]} 19. cxd5 {[%emt 0:00:37]} Ne4 {[%emt 0:01:50]} 20. Re2 {[%emt 0:01:40]} Rc7 {[%emt 0:07:28]} 21. Qa1 {[%emt 0:02:58]} Rce7 {[%emt 0:07:13]} 22. Rc2 {[%emt 0:01:46]} f6 {[%emt 0:02:18]} 23. Nd4 {[%emt 0:04:50]} Bxd4 {[%emt 0:00:29]} 24. Bxd4 {[%emt 0:00:01]} Nc5 {[%emt 0:05:11]} 25. Bxc5 {[%emt 0:01:28]} dxc5 {[%emt 0:00:02]} 26. Rxc5 {[%emt 0:00:14]} Qd6 {[%emt 0:00:58]} 27. Rc4 {[%emt 0:06:31]} Re2 {[%emt 0:01:34]} 28. Qc1 {[%emt 0:02:25]} Ne5 {[%emt 0:00:32]} 29. Rc8 {[%emt 0:01:09]} Nd3 {[%emt 0:00:32]} 30. Qc3 {[%emt 0:01:16]} Rxc8 {[%emt 0:00:33]} 31. Qxc8+ {[%emt 0:00:03]} Kf7 {[%emt 0:00:19]} 32. Qc4 {[%emt 0:01:45]} Rd2 {[%emt 0:00:42]} 33. Qc3 {[%emt 0:00:29]} Rxf2 {[%emt 0:00:29]} 34. Qxd3 {[%emt 0:00:18]} Ra2 {[%emt 0:00:07]} 35. b4 {[%emt 0:01:15]} h5 {[%emt 0:00:50]} 36. h4 {[%emt 0:00:20]} b5 {[%emt 0:00:37]} 37. Re1 {[%emt 0:01:20]} Kg8 {[%emt 0:00:29]} 38. Qg6 {[%emt 0:00:39]} Rxg2+ {[%emt 0:00:17]} 39. Kxg2 {[%emt 0:00:06]} Qxd5+ {[%emt 0:00:10]} 40. Qe4 {[%emt 0:00:20]} Qa2+ {[%emt 0:00:06]} 41. Re2 {[%emt 0:00:03]} 1-0